[Event "November 21 Early 2023"]
[Site "https://www.chess.com"]
[Date "2023.11.21"]
[Round "3"]
[White "Ambartsumova, Karina"]
[Black "Kassimov, Baurzhan"]
[Result "0-1"]
[Board "111"]
[TimeControl "180+1"]
[WhiteFideId "4166299"]
[BlackFideId "13704800"]
[WhiteElo "2240"]
[BlackElo "2220"]
[WhiteTeam "RUS"]
[BlackTeam "KAZ"]
[WhiteClock "0:00:05"]
[BlackClock "0:00:09"]

1. d4 {[%clk 0:03:00]}  d6 {[%clk 0:02:55]} 2. e4 {[%clk 0:02:59]}  Nf6 {[%clk 0:02:54]} 3. Nc3 {[%clk 0:02:59]}  e5 {[%clk 0:02:55]} 4. Nf3 {[%clk 0:02:59]}  exd4 {[%clk 0:02:53]} 5. Nxd4 {[%clk 0:02:58]}  Be7 {[%clk 0:02:53]} 6. Be2 {[%clk 0:02:51]}  O-O {[%clk 0:02:53]} 7. O-O {[%clk 0:02:52]}  c6 {[%clk 0:02:50]} 8. a4 {[%clk 0:02:49]}  a5 {[%clk 0:02:50]} 9. h3 {[%clk 0:02:48]}  Re8 {[%clk 0:02:49]} 10. Re1 {[%clk 0:02:47]}  Bf8 {[%clk 0:02:49]} 11. Bf1 {[%clk 0:02:47]}  Nbd7 {[%clk 0:02:50]} 12. Bf4 {[%clk 0:02:47]}  Ne5 {[%clk 0:02:49]} 13. Qd2 {[%clk 0:02:43]}  Ng6 {[%clk 0:02:46]} 14. Bh2 {[%clk 0:02:42]}  Qb6 {[%clk 0:02:47]} 15. Nb3 {[%clk 0:02:28]}  Be6 {[%clk 0:02:45]} 16. Nd4 {[%clk 0:02:20]}  Bd7 {[%clk 0:02:42]} 17. Kh1 {[%clk 0:02:13]}  Rad8 {[%clk 0:02:41]} 18. Rad1 {[%clk 0:02:03]}  Bc8 {[%clk 0:02:40]} 19. b3 {[%clk 0:01:32]}  h6 {[%clk 0:02:36]} 20. f4 {[%clk 0:01:31]}  Re7 {[%clk 0:02:01]} 21. Nf3 {[%clk 0:01:25]}  Rde8 {[%clk 0:01:54]} 22. Bd3 {[%clk 0:01:14]}  Qb4 {[%clk 0:01:44]} 23. e5 {[%clk 0:01:13]}  dxe5 {[%clk 0:01:34]} 24. fxe5 {[%clk 0:01:14]}  Nh7 {[%clk 0:01:27]} 25. Re4 {[%clk 0:00:55]}  Qb6 {[%clk 0:01:24]} 26. Re2 {[%clk 0:00:52]}  Be6 {[%clk 0:01:19]} 27. Ne4 {[%clk 0:00:48]}  Rd7 {[%clk 0:01:19]} 28. Rde1 {[%clk 0:00:42]}  Bb4 {[%clk 0:01:10]} 29. c3 {[%clk 0:00:36]}  Red8 {[%clk 0:01:06]} 30. Nd6 {[%clk 0:00:34]}  Bxd6 {[%clk 0:00:48]} 31. exd6 {[%clk 0:00:34]}  Nhf8 {[%clk 0:00:44]} 32. Nd4 {[%clk 0:00:31]}  Rxd6 {[%clk 0:00:37]} 33. Bxd6 {[%clk 0:00:29]}  Rxd6 {[%clk 0:00:38]} 34. Qc2 {[%clk 0:00:28]}  Bd5 {[%clk 0:00:30]} 35. Nf5 {[%clk 0:00:22]}  Rf6 {[%clk 0:00:30]} 36. c4 {[%clk 0:00:21]}  Be6 {[%clk 0:00:22]} 37. Rf1 {[%clk 0:00:16]}  Kh8 {[%clk 0:00:16]} 38. Ref2 {[%clk 0:00:16]}  Nd7 {[%clk 0:00:14]} 39. Ng3 {[%clk 0:00:16]}  Rxf2 {[%clk 0:00:14]} 40. Rxf2 {[%clk 0:00:16]}  Nge5 {[%clk 0:00:12]} 41. Be4 {[%clk 0:00:13]}  Nc5 {[%clk 0:00:11]} 42. Kh2 {[%clk 0:00:12]}  Qxb3 {[%clk 0:00:10]} 43. Qxb3 {[%clk 0:00:12]}  Nxb3 {[%clk 0:00:11]} 44. Rb2 {[%clk 0:00:12]}  Nc5 {[%clk 0:00:12]} 45. Bc2 {[%clk 0:00:10]}  Nxc4 {[%clk 0:00:11]} 46. Rb1 {[%clk 0:00:11]}  Na3 {[%clk 0:00:10]} 47. Rb2 {[%clk 0:00:11]}  Nxc2 {[%clk 0:00:10]} 48. Rxc2 {[%clk 0:00:12]}  Nxa4 {[%clk 0:00:10]} 49. Ne4 {[%clk 0:00:12]}  Bd5 {[%clk 0:00:07]} 50. Nd6 {[%clk 0:00:11]}  b5 {[%clk 0:00:06]} 51. Re2 {[%clk 0:00:08]}  b4 {[%clk 0:00:06]} 52. Re8+ {[%clk 0:00:08]}  Kh7 {[%clk 0:00:06]} 53. Rb8 {[%clk 0:00:08]}  b3 {[%clk 0:00:06]} 54. Nf5 {[%clk 0:00:07]}  b2 {[%clk 0:00:06]} 55. Ng3 {[%clk 0:00:07]}  Ba2 {[%clk 0:00:06]} 56. Ne2 {[%clk 0:00:05]}  b1=Q {[%clk 0:00:06]} 57. Rxb1 {[%clk 0:00:05]}  Bxb1 {[%clk 0:00:07]} 58. Kg3 {[%clk 0:00:06]}  Bd3 {[%clk 0:00:07]} 59. Nd4 {[%clk 0:00:06]}  c5 {[%clk 0:00:07]} 60. Nb3 {[%clk 0:00:06]}  c4 {[%clk 0:00:07]} 61. Nxa5 {[%clk 0:00:07]}  c3 {[%clk 0:00:08]} 62. Nb3 {[%clk 0:00:06]}  c2 {[%clk 0:00:08]} 63. Nc1 {[%clk 0:00:07]}  Bc4 {[%clk 0:00:07]} 64. Kf2 {[%clk 0:00:08]}  Nc3 {[%clk 0:00:08]} 65. g3 {[%clk 0:00:05]}  Na2 {[%clk 0:00:09]} 0-1

[Event "November 21 Early 2023"]
[Site "https://www.chess.com"]
[Date "2023.11.21"]
[Round "3"]
[White "SmirnovAlexandrA"]
[Black "Rosenberg, Evan S"]
[Result "1-0"]
[Board "114"]
[TimeControl "180+1"]
[BlackFideId "2019299"]
[WhiteElo "2635"]
[BlackElo "2447"]
[BlackTeam "USA"]
[WhiteClock "0:01:11"]
[BlackClock "0:00:27"]

1. e4 {[%clk 0:03:00]}  e5 {[%clk 0:02:57]} 2. d4 {[%clk 0:02:56]}  exd4 {[%clk 0:02:57]} 3. Qxd4 {[%clk 0:02:57]}  Nc6 {[%clk 0:02:57]} 4. Qe3 {[%clk 0:02:57]}  Nf6 {[%clk 0:02:57]} 5. Nc3 {[%clk 0:02:56]}  Bb4 {[%clk 0:02:57]} 6. Bd2 {[%clk 0:02:56]}  O-O {[%clk 0:02:56]} 7. O-O-O {[%clk 0:02:56]}  Re8 {[%clk 0:02:56]} 8. Qg3 {[%clk 0:02:56]}  Nxe4 {[%clk 0:02:48]} 9. Nxe4 {[%clk 0:02:52]}  Rxe4 {[%clk 0:02:48]} 10. c3 {[%clk 0:02:52]}  Bd6 {[%clk 0:02:32]} 11. f4 {[%clk 0:02:51]}  Qf6 {[%clk 0:02:24]} 12. Bd3 {[%clk 0:02:49]}  Bxf4 {[%clk 0:02:17]} 13. Qf2 {[%clk 0:02:39]}  Bxd2+ {[%clk 0:02:13]} 14. Qxd2 {[%clk 0:02:40]}  Re8 {[%clk 0:02:12]} 15. Nf3 {[%clk 0:02:38]}  d6 {[%clk 0:02:12]} 16. Rhf1 {[%clk 0:02:36]}  h6 {[%clk 0:02:02]} 17. h4 {[%clk 0:02:36]}  Bg4 {[%clk 0:01:22]} 18. Ng5 {[%clk 0:02:29]}  hxg5 {[%clk 0:01:19]} 19. Rxf6 {[%clk 0:02:29]}  gxf6 {[%clk 0:01:20]} 20. Rf1 {[%clk 0:02:17]}  Re5 {[%clk 0:01:13]} 21. Rxf6 {[%clk 0:02:16]}  Rae8 {[%clk 0:01:13]} 22. Rf1 {[%clk 0:01:49]}  f6 {[%clk 0:00:52]} 23. hxg5 {[%clk 0:01:48]}  fxg5 {[%clk 0:00:51]} 24. Bc4+ {[%clk 0:01:24]}  Kg7 {[%clk 0:00:50]} 25. Rf7+ {[%clk 0:01:23]}  Kg6 {[%clk 0:00:50]} 26. Qd3+ {[%clk 0:01:19]}  Bf5 {[%clk 0:00:48]} 27. Rxf5 {[%clk 0:01:18]}  Rxf5 {[%clk 0:00:48]} 28. g4 {[%clk 0:01:18]}  Re5 {[%clk 0:00:36]} 29. Be6 {[%clk 0:01:11]}  Kf6 {[%clk 0:00:27]} 30. Bxf5 {[%clk 0:01:11]} 1-0

[Event "November 21 Early 2023"]
[Site "https://www.chess.com"]
[Date "2023.11.21"]
[Round "3"]
[White "Della Morte, German"]
[Black "Arslanov, Shamil"]
[Result "1/2-1/2"]
[Board "116"]
[TimeControl "180+1"]
[WhiteFideId "113522"]
[BlackFideId "4192826"]
[WhiteElo "2306"]
[BlackElo "2326"]
[WhiteTeam "ARG"]
[BlackTeam "RUS"]
[WhiteClock "0:01:36"]
[BlackClock "0:00:03"]

1. e4 {[%clk 0:02:38]}  d6 {[%clk 0:02:59]} 2. Nc3 {[%clk 0:02:37]}  e5 {[%clk 0:02:59]} 3. g3 {[%clk 0:02:37]}  Nc6 {[%clk 0:02:51]} 4. Bg2 {[%clk 0:02:37]}  h5 {[%clk 0:02:51]} 5. d3 {[%clk 0:02:37]}  h4 {[%clk 0:02:51]} 6. f4 {[%clk 0:02:37]}  h3 {[%clk 0:02:40]} 7. Bf3 {[%clk 0:02:35]}  Nd4 {[%clk 0:02:36]} 8. f5 {[%clk 0:02:35]}  g6 {[%clk 0:02:19]} 9. fxg6 {[%clk 0:02:34]}  fxg6 {[%clk 0:02:19]} 10. Be3 {[%clk 0:02:34]}  Bh6 {[%clk 0:02:16]} 11. Bxd4 {[%clk 0:02:33]}  exd4 {[%clk 0:02:16]} 12. Nd5 {[%clk 0:02:29]}  c6 {[%clk 0:02:06]} 13. Nf4 {[%clk 0:02:26]}  Bxf4 {[%clk 0:01:58]} 14. gxf4 {[%clk 0:02:27]}  Qh4+ {[%clk 0:01:58]} 15. Kf1 {[%clk 0:02:26]}  Qxf4 {[%clk 0:01:59]} 16. Qc1 {[%clk 0:02:25]}  Qf6 {[%clk 0:01:47]} 17. c3 {[%clk 0:02:20]}  g5 {[%clk 0:00:55]} 18. Ke1 {[%clk 0:02:14]}  g4 {[%clk 0:00:56]} 19. Be2 {[%clk 0:02:14]}  Rh7 {[%clk 0:00:27]} 20. cxd4 {[%clk 0:02:14]}  Rf7 {[%clk 0:00:27]} 21. Qe3 {[%clk 0:02:13]}  Be6 {[%clk 0:00:20]} 22. Kd2 {[%clk 0:02:12]}  O-O-O {[%clk 0:00:19]} 23. Rf1 {[%clk 0:02:11]}  Qxf1 {[%clk 0:00:18]} 24. Bxf1 {[%clk 0:02:10]}  Rxf1 {[%clk 0:00:19]} 25. Qe2 {[%clk 0:02:04]}  Rdf8 {[%clk 0:00:18]} 26. Ke3 {[%clk 0:02:02]}  Ne7 {[%clk 0:00:15]} 27. b3 {[%clk 0:02:00]}  Ng6 {[%clk 0:00:14]} 28. d5 {[%clk 0:01:58]}  cxd5 {[%clk 0:00:14]} 29. exd5 {[%clk 0:01:59]}  Bd7 {[%clk 0:00:14]} 30. Kd4 {[%clk 0:01:58]}  Ne5 {[%clk 0:00:14]} 31. Qc2+ {[%clk 0:01:57]}  Kd8 {[%clk 0:00:14]} 32. Qe2 {[%clk 0:01:56]}  b6 {[%clk 0:00:14]} 33. Qd2 {[%clk 0:01:56]}  R8f2 {[%clk 0:00:14]} 34. Qg5+ {[%clk 0:01:56]}  Kc7 {[%clk 0:00:15]} 35. Nxh3 {[%clk 0:01:55]}  Nf3+ {[%clk 0:00:14]} 36. Ke3 {[%clk 0:01:51]}  Nxg5 {[%clk 0:00:12]} 37. Nxf2 {[%clk 0:01:51]}  Rxh1 {[%clk 0:00:12]} 38. Nxh1 {[%clk 0:01:52]}  Nf3 {[%clk 0:00:12]} 39. h3 {[%clk 0:01:49]}  Ng5 {[%clk 0:00:11]} 40. hxg4 {[%clk 0:01:48]}  Kd8 {[%clk 0:00:09]} 41. Nf2 {[%clk 0:01:47]}  Ke7 {[%clk 0:00:09]} 42. Kf4 {[%clk 0:01:46]}  Kf6 {[%clk 0:00:09]} 43. a3 {[%clk 0:01:42]}  Be8 {[%clk 0:00:09]} 44. b4 {[%clk 0:01:41]}  Bf7 {[%clk 0:00:10]} 45. Ne4+ {[%clk 0:01:41]}  Nxe4 {[%clk 0:00:10]} 46. dxe4 {[%clk 0:01:41]}  Kg6 {[%clk 0:00:06]} 47. e5 {[%clk 0:01:41]}  Bxd5 {[%clk 0:00:07]} 48. exd6 {[%clk 0:01:40]}  Kf6 {[%clk 0:00:07]} 49. d7 {[%clk 0:01:38]}  Ke7 {[%clk 0:00:07]} 50. Ke5 {[%clk 0:01:38]}  Ba2 {[%clk 0:00:06]} 51. d8=Q+ {[%clk 0:01:38]}  Kxd8 {[%clk 0:00:06]} 52. Kd6 {[%clk 0:01:38]}  Kc8 {[%clk 0:00:07]} 53. a4 {[%clk 0:01:37]}  Kb7 {[%clk 0:00:05]} 54. a5 {[%clk 0:01:37]}  b5 {[%clk 0:00:04]} 55. Kc5 {[%clk 0:01:36]}  a6 {[%clk 0:00:05]} 56. Kd6 {[%clk 0:01:35]}  Bb1 {[%clk 0:00:04]} 57. g5 {[%clk 0:01:35]}  Bc2 {[%clk 0:00:03]} 58. Kd7 {[%clk 0:01:35]}  Bf5+ {[%clk 0:00:03]} 59. Kd6 {[%clk 0:01:36]}  Bb1 {[%clk 0:00:04]} 60. Kd7 {[%clk 0:01:36]}  Kb8 {[%clk 0:00:04]} 61. Kc6 {[%clk 0:01:35]}  Ka7 {[%clk 0:00:05]} 62. Kc7 {[%clk 0:01:36]}  Be4 {[%clk 0:00:05]} 63. Kc8 {[%clk 0:01:36]}  Bf5+ {[%clk 0:00:03]} 64. Kc7 {[%clk 0:01:36]}  Be4 {[%clk 0:00:02]} 65. Kc8 {[%clk 0:01:36]}  Bb1 {[%clk 0:00:03]} 66. Kc7 {[%clk 0:01:36]}  Be4 {[%clk 0:00:03]} 1/2-1/2

[Event "November 21 Early 2023"]
[Site "https://www.chess.com"]
[Date "2023.11.21"]
[Round "3"]
[White "Minko, Dmitry"]
[Black "Degenbaev, Aziz"]
[Result "0-1"]
[Board "117"]
[TimeControl "180+1"]
[WhiteFideId "24188468"]
[BlackFideId "13802640"]
[WhiteElo "1992"]
[BlackElo "2083"]
[WhiteTeam "FID"]
[BlackTeam "KGZ"]
[WhiteClock "0:00:57"]
[BlackClock "0:01:02"]

1. e4 {[%clk 0:03:00]}  c5 {[%clk 0:02:59]} 2. Nf3 {[%clk 0:03:01]}  d6 {[%clk 0:02:59]} 3. d4 {[%clk 0:03:01]}  cxd4 {[%clk 0:03:00]} 4. Nxd4 {[%clk 0:03:02]}  Nf6 {[%clk 0:03:01]} 5. Nc3 {[%clk 0:03:03]}  Bd7 {[%clk 0:03:02]} 6. f3 {[%clk 0:03:00]}  e5 {[%clk 0:03:01]} 7. Nb3 {[%clk 0:03:00]}  Be7 {[%clk 0:03:00]} 8. Be3 {[%clk 0:03:01]}  a5 {[%clk 0:02:55]} 9. a4 {[%clk 0:02:58]}  Na6 {[%clk 0:02:54]} 10. Bb5 {[%clk 0:02:53]}  Nb4 {[%clk 0:02:54]} 11. O-O {[%clk 0:02:41]}  O-O {[%clk 0:02:53]} 12. Qe2 {[%clk 0:02:42]}  Rc8 {[%clk 0:02:51]} 13. Rfd1 {[%clk 0:02:42]}  Be6 {[%clk 0:02:47]} 14. Rd2 {[%clk 0:02:38]}  Qc7 {[%clk 0:02:35]} 15. Rad1 {[%clk 0:02:36]}  Nxc2 {[%clk 0:02:30]} 16. Rxc2 {[%clk 0:02:06]}  Bxb3 {[%clk 0:02:30]} 17. Nd5 {[%clk 0:02:07]}  Nxd5 {[%clk 0:01:27]} 18. Rxc7 {[%clk 0:02:05]}  Bxd1 {[%clk 0:01:28]} 19. Rxc8 {[%clk 0:01:54]}  Bxe2 {[%clk 0:01:23]} 20. Rxf8+ {[%clk 0:01:51]}  Kxf8 {[%clk 0:01:24]} 21. exd5 {[%clk 0:01:52]}  Bxb5 {[%clk 0:01:23]} 22. axb5 {[%clk 0:01:53]}  a4 {[%clk 0:01:22]} 23. Kf2 {[%clk 0:01:46]}  f5 {[%clk 0:01:21]} 24. Ke2 {[%clk 0:01:46]}  Bf6 {[%clk 0:01:19]} 25. Bc1 {[%clk 0:01:27]}  e4 {[%clk 0:01:17]} 26. fxe4 {[%clk 0:01:12]}  fxe4 {[%clk 0:01:18]} 27. g3 {[%clk 0:01:13]}  Bd4 {[%clk 0:01:16]} 28. Kd2 {[%clk 0:01:08]}  Ke7 {[%clk 0:01:11]} 29. Kc2 {[%clk 0:01:08]}  Kf6 {[%clk 0:01:11]} 30. b3 {[%clk 0:01:04]}  axb3+ {[%clk 0:01:10]} 31. Kxb3 {[%clk 0:01:05]}  e3 {[%clk 0:01:02]} 32. Kc2 {[%clk 0:01:00]}  e2 {[%clk 0:01:02]} 33. Kd2 {[%clk 0:00:57]}  Be3+ {[%clk 0:01:02]} 0-1

[Event "November 21 Early 2023"]
[Site "https://www.chess.com"]
[Date "2023.11.21"]
[Round "3"]
[White "Souleidis, Georgios"]
[Black "Astafurov, Arseniy"]
[Result "1-0"]
[Board "119"]
[TimeControl "180+1"]
[WhiteFideId "4206827"]
[BlackFideId "24175218"]
[WhiteElo "2401"]
[BlackElo "2170"]
[WhiteTeam "GRE"]
[BlackTeam "RUS"]
[WhiteClock "0:00:07"]
[BlackClock "0:00:27"]

1. e4 {[%clk 0:03:00]}  e6 {[%clk 0:02:59]} 2. d4 {[%clk 0:03:00]}  d5 {[%clk 0:02:59]} 3. Nc3 {[%clk 0:03:01]}  Nf6 {[%clk 0:02:58]} 4. Bg5 {[%clk 0:03:00]}  dxe4 {[%clk 0:02:58]} 5. Nxe4 {[%clk 0:03:01]}  Be7 {[%clk 0:02:59]} 6. Nxf6+ {[%clk 0:03:01]}  Bxf6 {[%clk 0:02:59]} 7. Bxf6 {[%clk 0:03:01]}  Qxf6 {[%clk 0:02:59]} 8. Nf3 {[%clk 0:03:01]}  c5 {[%clk 0:02:55]} 9. Bb5+ {[%clk 0:02:43]}  Nc6 {[%clk 0:02:46]} 10. Bxc6+ {[%clk 0:02:36]}  bxc6 {[%clk 0:02:47]} 11. O-O {[%clk 0:02:33]}  O-O {[%clk 0:02:46]} 12. c3 {[%clk 0:02:29]}  cxd4 {[%clk 0:02:24]} 13. Nxd4 {[%clk 0:02:29]}  c5 {[%clk 0:02:18]} 14. Nb3 {[%clk 0:02:22]}  c4 {[%clk 0:02:13]} 15. Nd4 {[%clk 0:02:21]}  Bb7 {[%clk 0:02:13]} 16. Qe2 {[%clk 0:02:17]}  Bd5 {[%clk 0:02:12]} 17. Rfe1 {[%clk 0:02:14]}  Rfc8 {[%clk 0:02:07]} 18. Rad1 {[%clk 0:02:11]}  Rab8 {[%clk 0:02:07]} 19. Rd2 {[%clk 0:02:11]}  h6 {[%clk 0:02:06]} 20. f3 {[%clk 0:02:11]}  Rb6 {[%clk 0:02:03]} 21. Qe3 {[%clk 0:02:09]}  Rcb8 {[%clk 0:02:03]} 22. Ree2 {[%clk 0:02:09]}  Qg6 {[%clk 0:02:01]} 23. a3 {[%clk 0:01:57]}  Qb1+ {[%clk 0:01:38]} 24. Re1 {[%clk 0:01:55]}  Qa2 {[%clk 0:01:38]} 25. b4 {[%clk 0:01:37]}  cxb3 {[%clk 0:01:24]} 26. Rxa2 {[%clk 0:01:23]}  bxa2 {[%clk 0:01:25]} 27. Nc2 {[%clk 0:00:43]}  Rb1 {[%clk 0:01:19]} 28. c4 {[%clk 0:00:04]}  Rxe1+ {[%clk 0:01:00]} 29. Nxe1 {[%clk 0:00:03]}  a1=Q {[%clk 0:00:52]} 30. cxd5 {[%clk 0:00:03]}  exd5 {[%clk 0:00:53]} 31. Kf2 {[%clk 0:00:03]}  Qxa3 {[%clk 0:00:45]} 32. Qxa3 {[%clk 0:00:02]}  Rb7 {[%clk 0:00:41]} 33. Nd3 {[%clk 0:00:03]}  Rc7 {[%clk 0:00:39]} 34. Kg3 {[%clk 0:00:03]}  g6 {[%clk 0:00:39]} 35. h4 {[%clk 0:00:04]}  Kg7 {[%clk 0:00:40]} 36. Ne5 {[%clk 0:00:04]}  h5 {[%clk 0:00:40]} 37. Qa1 {[%clk 0:00:05]}  Kh7 {[%clk 0:00:37]} 38. Nd3 {[%clk 0:00:05]}  Rd7 {[%clk 0:00:36]} 39. Qd4 {[%clk 0:00:05]}  a5 {[%clk 0:00:37]} 40. Nc5 {[%clk 0:00:06]}  Rd6 {[%clk 0:00:37]} 41. Na4 {[%clk 0:00:06]}  Kg8 {[%clk 0:00:35]} 42. Kh2 {[%clk 0:00:06]}  Rd7 {[%clk 0:00:35]} 43. Kh3 {[%clk 0:00:07]}  Rd8 {[%clk 0:00:34]} 44. g4 {[%clk 0:00:08]}  hxg4+ {[%clk 0:00:32]} 45. fxg4 {[%clk 0:00:09]}  Rc8 {[%clk 0:00:31]} 46. Qxd5 {[%clk 0:00:08]}  Rc1 {[%clk 0:00:31]} 47. Qxa5 {[%clk 0:00:07]}  Rb1 {[%clk 0:00:27]} 48. Nc3 {[%clk 0:00:07]} 1-0

[Event "November 21 Early 2023"]
[Site "https://www.chess.com"]
[Date "2023.11.21"]
[Round "3"]
[White "Nitin, S."]
[Black "Mazurkiewicz, Michal"]
[Result "1-0"]
[Board "120"]
[TimeControl "180+1"]
[WhiteFideId "5018277"]
[BlackFideId "1124943"]
[WhiteElo "2359"]
[BlackElo "2124"]
[WhiteTeam "IND"]
[BlackTeam "POL"]
[WhiteClock "0:00:18"]
[BlackClock "0:00:00"]

1. Nf3 {[%clk 0:03:00]}  Nf6 {[%clk 0:02:59]} 2. g3 {[%clk 0:02:57]}  g6 {[%clk 0:02:59]} 3. Bg2 {[%clk 0:02:57]}  Bg7 {[%clk 0:02:59]} 4. O-O {[%clk 0:02:58]}  O-O {[%clk 0:02:59]} 5. b3 {[%clk 0:02:58]}  d6 {[%clk 0:03:00]} 6. Bb2 {[%clk 0:02:58]}  e5 {[%clk 0:03:00]} 7. d3 {[%clk 0:02:58]}  Nbd7 {[%clk 0:02:52]} 8. c4 {[%clk 0:02:57]}  c6 {[%clk 0:02:48]} 9. Nc3 {[%clk 0:02:54]}  Nc5 {[%clk 0:02:47]} 10. e3 {[%clk 0:02:53]}  Ne6 {[%clk 0:02:42]} 11. d4 {[%clk 0:02:50]}  e4 {[%clk 0:02:42]} 12. Nd2 {[%clk 0:02:49]}  d5 {[%clk 0:02:42]} 13. h4 {[%clk 0:02:44]}  g5 {[%clk 0:02:29]} 14. hxg5 {[%clk 0:02:39]}  Nxg5 {[%clk 0:02:30]} 15. f3 {[%clk 0:02:25]}  exf3 {[%clk 0:02:27]} 16. Nxf3 {[%clk 0:02:24]}  Nge4 {[%clk 0:02:16]} 17. Ne2 {[%clk 0:02:07]}  Ng4 {[%clk 0:02:14]} 18. Qd3 {[%clk 0:02:07]}  Qd6 {[%clk 0:02:05]} 19. Ne5 {[%clk 0:01:48]}  Bxe5 {[%clk 0:02:01]} 20. dxe5 {[%clk 0:01:47]}  Qh6 {[%clk 0:02:01]} 21. Rf4 {[%clk 0:01:44]}  Qh2+ {[%clk 0:01:10]} 22. Kf1 {[%clk 0:01:43]}  f5 {[%clk 0:00:26]} 23. cxd5 {[%clk 0:01:28]}  Nxg3+ {[%clk 0:00:18]} 24. Nxg3 {[%clk 0:01:28]}  Qxg3 {[%clk 0:00:18]} 25. Re1 {[%clk 0:01:28]}  Rd8 {[%clk 0:00:06]} 26. e6 {[%clk 0:01:21]}  Bxe6 {[%clk 0:00:05]} 27. Qd4 {[%clk 0:01:21]}  Nh2+ {[%clk 0:00:04]} 28. Kg1 {[%clk 0:01:19]}  Bxd5 {[%clk 0:00:04]} 29. Qh8+ {[%clk 0:01:01]}  Kf7 {[%clk 0:00:04]} 30. Rxf5+ {[%clk 0:01:02]}  Ke6 {[%clk 0:00:05]} 31. Qf6+ {[%clk 0:00:58]}  Kd7 {[%clk 0:00:05]} 32. Rxd5+ {[%clk 0:00:52]}  cxd5 {[%clk 0:00:05]} 33. Qf7+ {[%clk 0:00:52]}  Kc8 {[%clk 0:00:02]} 34. Rc1+ {[%clk 0:00:51]}  Kb8 {[%clk 0:00:03]} 35. Rc2 {[%clk 0:00:42]}  Rg8 {[%clk 0:00:02]} 36. Rf2 {[%clk 0:00:24]}  a5 {[%clk 0:00:02]} 37. Qe6 {[%clk 0:00:19]}  Nf3+ {[%clk 0:00:00]} 38. Kf1 {[%clk 0:00:18]} 1-0

[Event "November 21 Early 2023"]
[Site "https://www.chess.com"]
[Date "2023.11.21"]
[Round "3"]
[White "Zoete, Roelant"]
[Black "Spata, German"]
[Result "0-1"]
[Board "121"]
[TimeControl "180+1"]
[WhiteFideId "40103269"]
[BlackFideId "113026"]
[WhiteElo "2443"]
[BlackElo "2260"]
[WhiteTeam "NED"]
[BlackTeam "ARG"]
[WhiteClock "0:00:11"]
[BlackClock "0:00:34"]

1. e4 {[%clk 0:03:00]}  e6 {[%clk 0:02:58]} 2. d4 {[%clk 0:03:00]}  d5 {[%clk 0:02:58]} 3. exd5 {[%clk 0:02:59]}  exd5 {[%clk 0:02:57]} 4. Qf3 {[%clk 0:03:00]}  Nf6 {[%clk 0:02:57]} 5. h3 {[%clk 0:03:00]}  Be7 {[%clk 0:02:54]} 6. Bd3 {[%clk 0:02:59]}  O-O {[%clk 0:02:53]} 7. Ne2 {[%clk 0:02:59]}  Re8 {[%clk 0:02:50]} 8. O-O {[%clk 0:02:59]}  c6 {[%clk 0:02:50]} 9. Bf4 {[%clk 0:02:46]}  Nbd7 {[%clk 0:02:50]} 10. Nd2 {[%clk 0:02:45]}  Nf8 {[%clk 0:02:50]} 11. Rfe1 {[%clk 0:02:42]}  Ne6 {[%clk 0:02:51]} 12. Bh2 {[%clk 0:02:41]}  Qb6 {[%clk 0:02:50]} 13. Nb3 {[%clk 0:02:05]}  a5 {[%clk 0:02:48]} 14. a4 {[%clk 0:02:03]}  Bb4 {[%clk 0:02:42]} 15. Rf1 {[%clk 0:01:49]}  Bd7 {[%clk 0:02:40]} 16. Be5 {[%clk 0:01:45]}  Be7 {[%clk 0:02:39]} 17. Rab1 {[%clk 0:01:40]}  Nf8 {[%clk 0:02:19]} 18. Qg3 {[%clk 0:01:36]}  Ng6 {[%clk 0:02:17]} 19. Nf4 {[%clk 0:00:54]}  Nxf4 {[%clk 0:02:09]} 20. Qxf4 {[%clk 0:00:51]}  Be6 {[%clk 0:02:00]} 21. Qh4 {[%clk 0:00:48]}  h6 {[%clk 0:01:55]} 22. Qg3 {[%clk 0:00:44]}  Qd8 {[%clk 0:01:50]} 23. f4 {[%clk 0:00:30]}  Bf8 {[%clk 0:01:45]} 24. Nc5 {[%clk 0:00:26]}  b6 {[%clk 0:01:33]} 25. Nxe6 {[%clk 0:00:21]}  Rxe6 {[%clk 0:01:30]} 26. Bf5 {[%clk 0:00:20]}  Re8 {[%clk 0:01:30]} 27. c3 {[%clk 0:00:20]}  Nd7 {[%clk 0:01:22]} 28. Bxd7 {[%clk 0:00:17]}  Qxd7 {[%clk 0:01:22]} 29. f5 {[%clk 0:00:18]}  Kh7 {[%clk 0:01:14]} 30. Rf4 {[%clk 0:00:17]}  f6 {[%clk 0:01:12]} 31. Re1 {[%clk 0:00:13]}  fxe5 {[%clk 0:01:01]} 32. dxe5 {[%clk 0:00:14]}  Qf7 {[%clk 0:01:01]} 33. e6 {[%clk 0:00:14]}  Qf6 {[%clk 0:01:02]} 34. Rg4 {[%clk 0:00:14]}  Qxf5 {[%clk 0:00:58]} 35. Rf4 {[%clk 0:00:13]}  Bd6 {[%clk 0:00:50]} 36. Qxg7+ {[%clk 0:00:08]}  Kxg7 {[%clk 0:00:50]} 37. Rxf5 {[%clk 0:00:09]}  Ra7 {[%clk 0:00:48]} 38. Rf3 {[%clk 0:00:08]}  Rae7 {[%clk 0:00:48]} 39. Rfe3 {[%clk 0:00:08]}  Bc5 {[%clk 0:00:48]} 40. Kf2 {[%clk 0:00:08]}  Rxe6 {[%clk 0:00:46]} 41. Kf3 {[%clk 0:00:07]}  Rxe3+ {[%clk 0:00:46]} 42. Rxe3 {[%clk 0:00:07]}  Rxe3+ {[%clk 0:00:47]} 43. Kf4 {[%clk 0:00:08]}  Re4+ {[%clk 0:00:47]} 44. Kg3 {[%clk 0:00:07]}  Bd6+ {[%clk 0:00:47]} 45. Kf2 {[%clk 0:00:07]}  h5 {[%clk 0:00:47]} 46. g3 {[%clk 0:00:07]}  Kg6 {[%clk 0:00:47]} 47. h4 {[%clk 0:00:07]}  Kf5 {[%clk 0:00:47]} 48. b4 {[%clk 0:00:08]}  Kg4 {[%clk 0:00:47]} 49. bxa5 {[%clk 0:00:06]}  bxa5 {[%clk 0:00:47]} 50. c4 {[%clk 0:00:07]}  Rxc4 {[%clk 0:00:46]} 51. Kg2 {[%clk 0:00:07]}  Rxa4 {[%clk 0:00:46]} 52. Kh2 {[%clk 0:00:08]}  Ra2+ {[%clk 0:00:46]} 53. Kg1 {[%clk 0:00:08]}  Rb2 {[%clk 0:00:46]} 54. Kf1 {[%clk 0:00:09]}  a4 {[%clk 0:00:47]} 55. Ke1 {[%clk 0:00:09]}  a3 {[%clk 0:00:47]} 56. Kd1 {[%clk 0:00:10]}  a2 {[%clk 0:00:47]} 57. Kc1 {[%clk 0:00:11]}  a1=Q# {[%clk 0:00:34]} 0-1